bitfinex/quotes_ETHUSD_20250413
["timestamp","ask_amount","ask_price","bid_price","bid_amount"]
[1744573556322,6.33174,1579.4,1579.1,0.2]
[1744573556545,6.33174,1579.4,1578.8,0.2]
[1744573556546,6.3333,1579.0,1578.8,0.2]
[1744573556935,0.55,1579.4,1578.8,0.2]
[1744573557134,6.33232,1579.2,1578.8,0.2]
[1744573557358,6.3329,1579.1,1578.8,0.2]
[1744573557537,6.33171,1579.4,1579.0,0.2]
[1744573557733,6.33199,1579.3,1579.0,0.2]
[1744573557963,4.81637,1579.3,1578.4,0.2]
[1744573558197,12.66854,1578.8,1578.6,0.2]
[1744573558362,6.33434,1578.7,1578.4,0.2]
[1744573558568,6.33458,1578.7,1578.4,0.2]
[1744573558743,0.55,1579.2,1578.4,0.2]
[1744573558744,3.0,1579.1,1578.4,0.2]
[1744573558942,54.33,1579.3,1578.5,0.2]
[1744573559294,6.33409,1578.8,1578.5,0.2]
[1744573559478,6.33458,1578.7,1578.5,0.2]
[1744573559679,6.33418,1578.8,1578.5,0.2]
[1744573559883,6.33272,1579.1,1578.5,0.2]
[1744573560180,6.33314,1579.0,1578.8,0.2]
[1744573560479,0.55,1579.2,1578.6,6.53443]
[1744573560698,54.33,1579.3,1578.9,0.2]
[1744573560906,60.66192,1579.3,1578.9,0.2]
[1744573561058,6.32951,1579.9,1579.2,6.53202]
[1744573561259,6.32951,1579.9,1579.5,0.2]
[1744573561260,6.3303,1579.8,1579.5,0.2]
[1744573561563,3.0,1579.6,1579.0,0.2]
[1744573561814,6.33272,1579.1,1579.0,0.2]
[1744573562103,6.33224,1579.3,1578.8,0.2]
[1744573562284,6.33178,1579.4,1578.9,6.53326]
[1744573562482,6.33111,1579.5,1579.1,0.2]
[1744573562794,6.33367,1578.9,1578.6,0.2]
[1744573563089,6.332,1579.3,1578.8,0.2]
[1744573563295,6.33309,1579.1,1578.8,0.2]
[1744573563455,6.33309,1579.1,1578.5,6.33509]
[1744573563456,6.33374,1578.9,1578.5,0.2]
[1744573563658,6.33374,1578.9,1578.7,0.2]
[1744573563860,6.33313,1579.0,1578.7,0.2]
[1744573564059,6.33143,1579.5,1579.2,0.2]
[1744573564258,6.32997,1579.8,1579.5,0.2]
[1744573564501,6.33058,1579.7,1579.5,0.2]
[1744573564654,12.66273,1579.5,1579.2,0.2]
[1744573564860,4.6447,1580.0,1579.2,0.2]
[1744573565077,6.33075,1579.6,1579.5,0.2]
[1744573565457,12.61184,1579.6,1579.3,0.2]
[1744573565653,6.33113,1579.5,1579.2,0.2]
[1744573565890,6.33247,1579.2,1578.9,0.2]
[1744573566091,6.33186,1579.4,1579.0,0.2]
[1744573566291,6.33191,1579.3,1579.0,0.2]
[1744573566492,54.332,1579.7,1578.6,1.3442]
[1744573566493,3.0,1579.6,1579.2,6.33192]
[1744573566676,3.0,1579.6,1578.6,1.3442]
[1744573566677,6.32984,1579.9,1579.4,0.2]
[1744573566886,6.33014,1579.8,1579.5,0.2]
[1744573567211,6.33086,1579.6,1579.5,0.2]
[1744573567712,0.55,1579.3,1578.8,0.2]
[1744573567861,6.33302,1579.1,1578.9,0.2]
[1744573568209,6.33328,1579.0,1578.8,0.2]
[1744573568405,12.66602,1579.1,1578.8,0.2]
[1744573568698,6.33316,1579.0,1578.8,0.2]
[1744573568989,4.816615,1579.0,1578.3,0.2]
[1744573569192,3.0,1578.8,1578.4,6.33546]
[1744573569394,6.33355,1578.9,1578.6,6.53466]
[1744573569598,6.33357,1578.9,1578.6,0.2]
[1744573569902,1.5405,1579.3,1578.9,0.2]
[1744573570108,6.33157,1579.4,1579.0,6.53287]
[1744573570304,6.33266,1579.2,1579.0,0.2]
[1744573570896,1.5405,1579.7,1579.3,0.2]
[1744573571213,6.32911,1580.0,1579.3,0.2]
[1744573571363,6.33061,1579.7,1579.5,0.2]
[1744573571561,6.33037,1579.7,1579.5,0.2]
[1744573571768,6.32994,1579.8,1579.5,0.2]
[1744573572197,12.66015,1579.8,1579.5,0.2]
[1744573572401,6.33147,1579.5,1579.2,0.2]
[1744573572701,6.33147,1579.5,1579.3,0.2]
[1744573572898,6.33045,1579.7,1579.5,0.2]
[1744573573089,12.66116,1579.7,1579.5,0.2]
[1744573573292,6.33071,1579.6,1579.5,0.2]
[1744573573474,6.33084,1579.6,1579.1,0.2]
[1744573573808,6.33084,1579.6,1579.0,1.3442]
[1744573573809,6.33211,1579.3,1579.2,0.2]
[1744573573971,12.66428,1579.3,1579.0,1.5442]
[1744573574171,6.3315,1579.5,1579.0,1.5442]
[1744573574402,6.33245,1579.2,1579.0,0.2]
[1744573574563,6.33245,1579.2,1578.8,6.33371]
[1744573574564,6.33245,1579.2,1579.1,0.19783085]
[1744573575393,6.33352,1578.9,1578.8,0.2]
[1744573575588,6.33317,1579.0,1578.9,0.2]
[1744573575894,6.33352,1578.9,1578.8,0.2]
[1744573576093,6.33317,1579.0,1578.8,0.2]
[1744573576293,6.33317,1579.0,1578.8,0.19788224]
[1744573576484,6.33317,1579.0,1578.9,0.2]
[1744573576824,6.33352,1578.9,1578.8,0.19788224]
[1744573577009,12.66728,1578.9,1578.7,0.2]
[1744573577302,12.66728,1578.9,1578.2,6.33631]
[1744573577303,6.33472,1578.6,1578.2,0.2]
[1744573577517,9.88328,1579.0,1578.0,0.2]
[1744573577518,6.33633,1578.2,1578.0,0.2]
[1744573577711,3.55,1578.6,1577.9,6.53742]
[1744573577896,30.51,1581.8,1577.8,7.682]
[1744573577897,19.78956523,1584.2,1580.0,0.989492]
[1744573578094,50.7,1587.0,1580.0,0.989492]
[1744573578095,0.30284798,1583.9,1581.2,0.55]
[1744573578299,0.19,1583.9,1583.6,6.683]
[1744573578499,1.5044,1585.6,1582.5,0.51568116]
[1744573578500,6.3083,1585.3,1584.0,6.31312]
[1744573578807,1.5044,1584.4,1583.1,0.2]
[1744573578975,2.57446443,1584.3,1583.2,0.11549844]
[1744573579327,2.57446443,1584.3,1582.3,0.2]
[1744573579328,6.31508,1583.6,1582.3,6.31991]
[1744573579525,1.54176,1584.1,1582.6,0.2]
[1744573579672,0.98108597,1584.0,1583.1,0.2]
[1744573579871,1.54176,1584.1,1582.3,0.0637]
[1744573580069,1.54176,1584.1,1582.6,1.80639695]
[1744573580308,1.54176,1584.1,1582.3,0.0637]
[1744573580309,6.31313,1584.0,1582.3,0.0637]
[1744573580663,6.31515,1583.5,1582.3,0.0637]
[1744573580924,60.64921,1584.0,1582.3,0.0637]
[1744573581232,1.54176,1584.1,1582.4,0.06319061]
[1744573581537,54.29,1584.5,1583.0,6.86711]
[1744573581843,6.31271,1584.2,1582.9,6.31718]
[1744573582124,54.29,1584.5,1583.0,0.06315645]
[1744573582312,54.29,1584.5,1582.9,6.31751]
[1744573582313,5.429,1584.4,1582.9,6.31751]
[1744573582518,54.29,1584.5,1584.0,6.31282]
[1744573582726,54.29,1584.5,1584.1,0.063125]
[1744573582928,54.29,1584.5,1583.6,7.0649983]
[1744573582929,54.29,1584.5,1583.9,6.31345]
[1744573583102,0.05,1585.4,1583.2,0.0637]
[1744573583303,6.30875,1585.1,1584.0,6.31294]
[1744573583509,0.630875,1585.0,1583.6,6.31445]
[1744573583837,6.31406,1583.8,1582.6,0.0637]
[1744573584150,1.8653,1584.7,1582.0,6.32085]
[1744573584151,1.6653,1583.6,1582.5,6.31908]
[1744573584441,1.6653,1583.6,1581.9,0.0637]
[1744573584442,6.31742,1583.0,1581.9,6.38485]
[1744573584648,0.55,1583.1,1581.4,5.37182613]
[1744573584938,6.87031,1582.2,1581.4,5.37182613]
[1744573585231,6.87031,1582.2,1581.1,0.05]
[1744573585232,6.32324,1581.5,1581.1,0.05]
[1744573585444,6.32203,1581.8,1581.1,0.05]
[1744573585662,0.55,1582.1,1581.3,6.32389]
[1744573585941,0.55,1582.1,1581.2,6.32407]
[1744573586093,0.55,1582.0,1581.2,6.32399]
[1744573586299,6.32382,1581.4,1581.1,0.05]
[1744573586540,54.247,1581.3,1581.1,0.05]
[1744573586847,6.87431,1581.2,1581.1,0.05]
[1744573587250,6.87554,1580.9,1580.5,7.66147884]
[1744573587408,6.32591,1580.8,1580.5,7.66147884]
[1744573587603,6.87711,1580.5,1580.4,0.145469]
[1744573587855,6.32831,1580.2,1580.1,0.05]
[1744573588005,54.803,1580.2,1580.1,0.05]
[1744573588455,54.803,1580.2,1579.1,5.38574074]
[1744573588456,6.32959,1579.9,1579.1,5.38574074]
[1744573588662,6.32897,1580.1,1579.2,6.33197]
[1744573588823,9.32908,1580.1,1579.3,6.33191]
[1744573589022,3.0,1580.1,1579.3,6.33167]
[1744573589242,9.32877,1580.1,1579.3,6.33167]
[1744573589534,3.0,1579.9,1579.1,6.38252]
[1744573589736,3.0,1580.0,1579.1,0.05]
[1744573589939,3.0,1579.5,1579.1,0.05]
[1744573590257,3.0,1579.3,1579.1,0.05]
[1744573590465,54.253,1579.3,1579.1,0.05]
[1744573590759,3.0,1579.8,1579.1,0.05]
[1744573590916,54.271,1580.0,1579.1,0.05]
[1744573591116,3.0,1579.3,1579.1,0.05]
[1744573591441,1.5978,1579.6,1579.1,0.05]
[1744573591614,3.0,1579.3,1579.1,0.05]
[1744573591815,6.88161,1579.4,1579.1,0.05]
[1744573592063,54.271,1579.3,1579.1,0.05]
[1744573592416,60.6032,1579.3,1579.1,0.05]
[1744573592618,9.88232,1579.2,1579.1,0.05]
[1744573592816,6.33359,1578.9,1578.5,0.4656679]
[1744573593070,57.26783415,1579.3,1578.5,6.8005879]
[1744573593274,54.271,1579.3,1578.8,6.3337]
[1744573593567,54.271,1579.3,1578.9,6.33348]
[1744573593744,54.271,1579.3,1578.9,0.633348]
[1744573593931,54.271,1579.3,1579.1,6.33248]
[1744573594135,60.61893,1580.3,1579.0,1.5277]
[1744573594367,6.3287,1580.2,1579.3,6.33154]
[1744573594571,54.291,1580.3,1579.0,1.5277]
[1744573594716,54.291,1580.3,1580.2,6.32831]
[1744573594917,54.291,1581.0,1579.9,6.32951]
[1744573595121,60.61648,1581.0,1580.3,6.32773]
[1744573595337,60.61614,1581.0,1580.0,0.632951]
[1744573595553,60.61614,1581.0,1580.3,6.3277]
[1744573595871,54.291,1581.0,1580.3,6.32755]
[1744573596022,54.291,1581.0,1580.4,6.3273]
[1744573596365,60.61623,1581.0,1579.8,6.32991]
[1744573596528,54.291,1581.0,1580.4,6.32742]
[1744573596868,54.291,1581.0,1580.3,6.32791]
[1744573597032,54.291,1581.0,1580.5,6.32711]
[1744573597238,54.291,1581.0,1580.8,6.3257]
[1744573597545,54.291,1581.0,1580.9,6.32551]
[1744573597963,0.05,1581.4,1580.7,0.06325412]
[1744573598181,0.05,1581.4,1580.3,6.32789]
[1744573598182,0.05,1581.4,1580.9,12.65065]
[1744573598373,6.3736,1581.4,1580.7,6.32591]
[1744573598571,0.05,1581.4,1580.9,6.3253]
[1744573598870,6.37351,1581.4,1580.8,6.32552]
[1744573599035,0.05,1581.4,1580.9,6.32531]
[1744573599451,0.05,1581.4,1581.0,6.32507]
[1744573599658,0.05,1581.4,1580.9,6.32538]
[1744573599984,0.05,1581.4,1580.9,6.32544]
[1744573600187,6.32395,1581.3,1580.5,6.32708]
[1744573600495,3.05,1581.4,1580.9,6.32546]
[1744573600640,3.05,1581.4,1580.8,6.3259]
[1744573600641,0.05,1581.4,1581.1,6.32462]
[1744573600842,0.05,1581.4,1581.1,6.32454]
[1744573601057,0.05,1581.4,1581.2,6.32414]
[1744573601237,0.05,1581.4,1581.1,6.3247]
[1744573601440,0.05,1581.4,1581.3,6.32391]
[1744573601683,0.05,1581.4,1581.3,7.55301019]
[1744573602385,1e-05,1581.4,1581.3,7.55301019]
[1744573603271,1e-05,1581.4,1581.3,7.48977808]
[1744573603478,1e-05,1581.4,1581.3,7.55299499]
[1744573603781,0.05,1582.4,1582.2,6.3201]
[1744573604275,0.05,1582.4,1581.9,6.32147]
[1744573604483,0.05,1582.4,1581.9,6.32134]
[1744573604791,0.05,1582.4,1582.1,6.32051]
[1744573605092,0.05,1582.4,1582.1,6.32041]
[1744573605297,0.05,1582.4,1582.3,6.31991]
[1744573605508,0.05,1582.4,1582.1,6.32053]
[1744573605796,6.36954,1582.4,1581.4,0.0637]
[1744573605956,6.3202,1582.3,1581.8,6.32185]
[1744573606377,6.3202,1582.3,1581.8,6.38506252]
[1744573607090,6.32065,1582.2,1581.8,0.06321252]
[1744573607252,1.5737,1582.1,1580.6,1.6055]
[1744573607456,6.32264,1581.7,1580.9,6.32551]
[1744573607685,6.32346,1581.5,1580.9,6.32534]
[1744573607865,6.32346,1581.5,1580.7,0.1975127]
[1744573607866,6.32433,1581.2,1580.7,6.5235827]
[1744573608165,6.32482,1581.1,1580.2,7.93378]
[1744573608386,0.55,1581.0,1580.0,6.32897]
[1744573608688,6.32742,1580.5,1580.0,6.32904]
[1744573608880,9.87517,1581.0,1580.1,0.06328542]
[1744573609082,6.32669,1580.7,1580.1,6.32861]
[1744573609282,3.0,1580.9,1579.7,1.6055]
[1744573609283,6.32583,1580.9,1579.7,1.6055]
[1744573609595,3.0,1580.8,1580.0,12.65792]
[1744573609792,6.32631,1580.7,1580.2,6.32827]
[1744573610288,12.65292,1580.7,1580.1,6.32849]
[1744573610589,6.32606,1580.8,1580.2,6.39153146]
[1744573610771,1.5737,1581.1,1580.5,6.32685]
[1744573610968,7.89841,1581.1,1580.6,6.32654]
[1744573611467,7.8985,1581.1,1580.2,6.32831]
[1744573611667,1.5737,1581.1,1580.6,6.32644]
[1744573611984,6.32431,1581.2,1580.7,6.32611]
[1744573612367,54.247,1581.4,1580.7,1.22850614]
[1744573612558,54.247,1581.4,1580.2,1.0]
[1744573612756,54.247,1581.4,1580.6,6.32632]
[1744573612757,6.32452,1581.2,1580.6,6.32632]
[1744573612956,6.32457,1581.2,1580.6,6.32651]
[1744573613169,6.32692,1580.6,1579.7,1.6055]
[1744573613369,6.32734,1580.5,1579.9,6.32925]
[1744573613592,6.32734,1580.5,1579.9,6.962175]
[1744573613755,6.32674,1580.6,1580.1,6.3287]
[1744573613961,9.32655,1580.7,1580.1,6.32854]
[1744573614161,13.3891083,1581.3,1579.8,6.39291555]
[1744573614370,6.32617,1580.8,1580.2,6.32805]
[1744573614574,6.32552,1580.9,1580.3,6.39101642]
[1744573614771,6.32636,1580.7,1580.1,6.32841]
[1744573614973,6.32688,1580.6,1580.0,6.3289]
[1744573615273,6.32733,1580.5,1580.0,6.32895]
[1744573615458,3.55,1581.0,1580.0,6.32895]
[1744573615658,6.32743,1580.5,1580.0,6.32895]
[1744573616002,6.32743,1580.5,1579.6,6.33067]
[1744573616003,6.32891,1580.1,1579.6,6.33067]
[1744573616162,60.58825,1580.5,1579.3,7.86352]
[1744573616513,60.58827,1580.5,1580.0,6.32894]
[1744573616662,54.261,1580.5,1580.0,6.32894]
[1744573616862,54.261,1580.5,1580.1,6.3287]
[1744573617059,60.58826,1580.5,1579.9,6.32946]
[1744573617312,60.58826,1580.5,1580.0,6.32897]
[1744573617615,60.58826,1580.5,1579.4,6.33138]
[1744573617616,6.32751,1580.4,1579.4,6.33138]
[1744573617910,6.32751,1580.4,1579.3,6.33189]
[1744573617911,0.55,1580.1,1579.3,6.33189]
[1744573618068,6.33052,1579.7,1579.2,6.33231]
[1744573618269,12.66024,1579.8,1579.3,6.33179]
[1744573618470,6.32956,1579.9,1579.4,6.33145]
[1744573618700,6.32956,1579.9,1579.4,12.66273]
[1744573618864,6.32956,1579.9,1579.3,6.33189]
[1744573619199,12.65957,1579.9,1579.3,6.33157]
[1744573619405,6.32933,1580.0,1579.4,6.33129]
[1744573619607,3.0,1580.4,1579.2,6.33197]
[1744573619906,9.32875,1580.1,1579.2,6.33197]
[1744573620213,54.261,1580.5,1579.2,6.33197]
[1744573620214,6.32796,1580.3,1579.2,6.33197]
[1744573620410,6.32796,1580.3,1579.5,6.33108]
[1744573620411,6.32791,1580.3,1579.5,6.33108]
[1744573620710,1.5896,1579.9,1579.1,0.05]
[1744573621012,1.5896,1580.4,1579.2,0.06332293]
[1744573621306,6.32425,1581.3,1580.3,6.3276]
[1744573621307,1.5896,1580.8,1580.3,6.3276]
[1744573621504,1.5896,1580.8,1580.7,6.32631]
[1744573621806,6.32539,1581.0,1580.5,6.3269]
[1744573622387,4.8890441,1581.0,1580.0,6.32883]
[1744573622586,60.60179,1581.1,1580.4,6.32716]
[1744573622911,54.277,1581.1,1580.4,6.32728]
[1744573623095,6.32664,1580.7,1580.2,6.32809]
[1744573623415,9.32517,1581.0,1580.5,6.32692]
[1744573623571,54.277,1581.1,1580.7,6.32613]
[1744573623899,54.277,1581.1,1580.8,6.32569]
[1744573624103,6.32276,1581.6,1580.2,7.593775]
[1744573624104,1.5467,1581.6,1580.9,0.06325451]
[1744573624315,1.5467,1581.6,1581.4,6.32344]
[1744573624514,1.5467,1582.0,1581.5,6.32296]
[1744573624710,0.05,1582.4,1581.7,6.32205]
[1744573624711,1.5967,1582.4,1581.7,6.32205]
[1744573624876,6.32021,1582.3,1581.5,6.3231]
[1744573625083,6.32051,1582.2,1581.6,6.32251]
[1744573625398,6.32166,1581.9,1580.8,6.32591]
[1744573625579,1.5967,1582.4,1581.9,6.32123]
[1744573625801,7.91644,1582.4,1581.8,6.32169]
[1744573626019,7.91644,1582.4,1581.5,6.32311]
[1744573626020,1.5967,1582.4,1581.7,6.32216]
[1744573626311,1.5967,1582.4,1582.1,6.32053]
[1744573626608,0.32985698,1582.3,1582.1,6.32047]
[1744573626914,0.05,1582.4,1582.1,6.32046]
[1744573627204,0.05,1582.4,1582.3,6.31991]
[1744573627798,0.05,1582.4,1582.3,7.64709282]
[1744573628110,1e-05,1582.4,1582.3,12.646204]
[1744573628315,0.05,1583.4,1583.3,6.31592]
[1744573629638,1e-05,1583.4,1583.3,7.89722]
[1744573629808,1e-05,1583.4,1583.3,9.06423008]
[1744573630110,1e-05,1583.4,1583.3,9.12736763]
[1744573630312,1e-05,1583.4,1583.3,9.06423008]
[1744573630616,1e-05,1583.4,1583.3,9.12736547]
[1744573630770,1e-05,1583.4,1583.3,7.89722]
[1744573630970,1e-05,1583.4,1583.3,6.31592]
[1744573631467,1e-05,1583.4,1583.2,6.31596]
[1744573631865,1e-05,1583.4,1583.2,12.63201]
[1744573632164,1e-05,1583.4,1583.3,6.37907793]
[1744573632367,1e-05,1583.4,1583.1,6.31669]
[1744573632613,1e-05,1583.4,1583.2,6.31601]
[1744573632982,6.31558,1583.4,1582.9,6.31735]
[1744573633200,1e-05,1583.4,1582.5,6.31911]
[1744573633412,1e-05,1583.4,1583.0,6.31695]
[1744573633713,1e-05,1583.4,1583.0,12.63378]
[1744573633917,1e-05,1583.4,1582.7,6.31811]
[1744573633918,6.31669,1583.2,1582.7,6.31811]
[1744573634081,6.31569,1583.4,1582.8,6.31758]
[1744573634289,1e-05,1583.4,1582.9,0.06317069]
[1744573634542,1e-05,1583.4,1583.2,6.31614]
[1744573634844,1e-05,1583.4,1583.3,6.31592]
[1744573636224,1e-05,1583.4,1583.2,6.31614]
[1744573636428,6.31591,1583.4,1582.9,6.31746]
[1744573636586,1e-05,1583.4,1582.9,6.31749]
[1744573636915,1e-05,1583.4,1583.0,6.31709]
[1744573637138,12.63138,1583.4,1582.9,6.31727]
[1744573637314,6.3156,1583.4,1582.4,1.6478]
[1744573637517,12.63144,1583.4,1582.9,6.31736]
[1744573637679,12.63144,1583.4,1582.6,6.31858]
[1744573637680,1e-05,1583.4,1582.4,7.96714]
[1744573637883,6.31554,1583.4,1582.9,6.31713]
[1744573638083,6.31598,1583.3,1582.8,6.31776]
[1744573638317,6.31633,1583.2,1582.4,1.6478]
[1744573638620,6.31717,1583.0,1582.6,6.31847]
[1744573638819,6.31678,1583.1,1582.6,6.31847]
[1744573639005,6.31765,1582.9,1582.3,6.31962]
[1744573639193,1e-05,1583.4,1582.5,6.31911]
[1744573639544,12.63132,1583.4,1582.9,6.31731]
[1744573639743,6.31559,1583.4,1582.8,6.31769]
[1744573639919,6.31592,1583.3,1582.7,6.31823]
[1744573640120,6.31648,1583.2,1582.7,12.63634]
[1744573640284,3.00001,1583.4,1582.8,6.38095051]
[1744573640485,6.31596,1583.3,1582.8,6.31788]
[1744573640714,6.31606,1583.3,1582.8,6.31777]
[1744573640938,6.31606,1583.3,1582.9,6.31749]
[1744573641139,1e-05,1583.4,1582.5,6.31879]
[1744573641359,1e-05,1583.4,1582.1,0.55]
[1744573641360,1e-05,1583.4,1583.2,12.63233]
[1744573641498,1e-05,1583.4,1583.3,6.31592]
[1744573641901,1e-05,1583.4,1582.9,6.31751]
[1744573642254,1e-05,1583.4,1583.3,6.31592]
[1744573643230,1e-05,1583.4,1583.3,7.64225439]
[1744573643604,1e-05,1583.4,1583.3,7.579109]
[1744573644017,0.05,1584.4,1584.0,6.3129]
[1744573644219,0.05,1584.4,1583.8,6.31392]
[1744573644432,0.342218,1585.2,1584.4,6.31153]
[1744573644649,0.342218,1585.2,1584.7,6.31013]
[1744573644650,6.650608,1585.2,1584.7,6.31013]
[1744573644934,0.342218,1585.2,1584.8,6.30976]
[1744573645098,0.342218,1585.2,1584.8,12.61953]
[1744573645299,0.342218,1585.2,1584.9,6.30954]
[1744573645534,0.342218,1585.2,1585.0,6.30891]
[1744573645735,0.342218,1585.2,1585.1,6.30875]
[1744573646126,0.342218,1585.2,1585.0,6.30891]
[1744573646335,0.342218,1585.2,1585.1,6.30875]
[1744573646833,0.342218,1585.2,1585.1,6.37182896]
[1744573646834,8e-06,1585.2,1585.1,6.37182896]
[1744573647154,0.05,1585.4,1585.3,6.30795]
[1744573647155,8e-06,1585.4,1585.3,6.30795]
[1744573647315,8e-06,1585.4,1585.3,6.37100201]
[1744573647644,8e-06,1585.4,1585.3,6.30795]
[1744573647846,8e-06,1585.4,1585.3,6.3710048]
[1744573647998,8e-06,1585.4,1585.3,6.30795]
[1744573648198,8e-06,1585.4,1585.3,7.47088018]
[1744573648520,8e-06,1585.4,1585.3,6.30795]
[1744573650199,8e-06,1585.4,1585.3,6.37100765]
[1744573650427,8e-06,1585.4,1585.3,9.30795]
[1744573650634,0.05,1586.4,1586.3,6.30397]
[1744573652752,1e-05,1586.4,1586.3,7.564789]
[1744573652954,1e-05,1586.4,1586.3,6.30397]
[1744573655965,1e-05,1586.4,1586.3,6.36698924]
[1744573656167,1e-05,1586.4,1586.3,6.36698925]
[1744573656826,1e-05,1586.4,1586.3,6.36699565]
[1744573657264,1e-05,1586.4,1586.3,9.30397]
[1744573657556,1e-05,1586.4,1586.3,10.864789]
[1744573658556,7.5e-06,1586.8,1586.7,6.30238]
[1744573658755,7.5e-06,1586.8,1586.7,7.93368]
[1744573658947,7.5e-06,1586.8,1586.7,7.99667589]
[1744573659162,7.5e-06,1586.8,1586.7,6.30238]
[1744573660558,7.5e-06,1586.8,1586.6,6.30263]
[1744573660740,7.5e-06,1586.8,1586.7,6.30238]
[1744573661134,7.5e-06,1586.8,1586.6,6.30263]
[1744573661337,7.5e-06,1586.8,1586.6,6.30255]
[1744573661544,7.5e-06,1586.8,1586.7,6.30238]
[1744573661749,7.5e-06,1586.8,1586.6,6.30255]
[1744573661939,7.5e-06,1586.8,1586.7,6.30238]
[1744573662140,7.5e-06,1586.8,1586.7,7.62588871]
[1744573662361,7.5e-06,1586.8,1586.7,7.562873]
[1744573662662,7.5e-06,1586.8,1586.7,9.194173]
[1744573662887,7.5e-06,1586.8,1586.7,9.25716887]
[1744573663177,0.05,1587.4,1587.3,6.3]
[1744573663947,6.34979,1587.4,1586.9,6.30131]
[1744573664256,6.34965,1587.4,1586.9,12.60295]
[1744573664460,0.05,1587.4,1587.0,6.30106]
[1744573664781,0.05,1587.4,1587.1,6.30064]
[1744573665072,0.05,1587.4,1587.2,6.30023]
[1744573665277,6.34962,1587.4,1587.0,6.30081]
[1744573665479,0.05,1587.4,1586.9,6.30159]
[1744573665633,0.05,1587.4,1587.3,6.3]
[1744573666580,0.05,1587.4,1587.2,6.30023]
[1744573666731,0.05,1587.4,1587.1,6.30073]
[1744573666932,0.05,1587.4,1586.9,6.30129]
[1744573667224,6.34989,1587.4,1587.0,12.60208]
[1744573667381,0.05,1587.4,1587.0,1.260208]
[1744573667578,0.05,1587.4,1587.0,6.30111]
[1744573667875,6.34978,1587.4,1587.0,12.602]
[1744573668086,6.34978,1587.4,1587.1,6.30056]
[1744573668087,0.05,1587.4,1587.1,6.30056]
[1744573668368,0.45,1587.7,1587.6,6.29881]
[1744573668732,0.45,1587.7,1587.5,6.29904]
[1744573669133,0.45,1587.7,1587.4,6.29959]
[1744573669332,2.0755,1587.7,1587.3,0.06299105]
[1744573669566,2.0755,1587.7,1587.4,12.59893]
[1744573669764,2.0755,1587.7,1586.6,7.87626]
[1744573669961,2.0755,1587.7,1586.7,7.090006]
[1744573669962,6.29936,1587.5,1586.7,7.090006]
[1744573670137,6.2992,1587.6,1586.8,6.30199]
[1744573670339,6.30013,1587.3,1586.9,6.30159]
[1744573670566,6.30071,1587.2,1586.8,6.36493209]
[1744573670739,12.60133,1587.2,1586.8,6.30183]
[1744573670955,6.30075,1587.2,1586.8,6.30183]
[1744573671159,6.30121,1587.0,1586.7,6.30224]
[1744573671382,6.30121,1587.0,1586.6,6.30275]
[1744573671561,1.6255,1587.0,1586.3,0.06302386]
[1744573671756,1.6255,1587.0,1586.6,6.30256]
[1744573671989,6.30198,1586.9,1586.5,6.30312]
[1744573672164,12.60393,1586.9,1586.5,6.30312]
[1744573672365,1.6255,1587.0,1586.4,6.30338]
[1744573672561,6.3035,1586.5,1586.0,6.30494]
[1744573672755,6.30262,1586.7,1586.2,6.30419]
[1744573672955,6.30345,1586.5,1586.0,6.30492]
[1744573673159,6.30199,1586.8,1585.5,11.18110745]
[1744573673160,6.30404,1586.3,1585.9,6.30553]
[1744573673988,6.30532,1586.0,1585.6,6.30655]
[1744573674191,1.6255,1586.3,1585.7,0.06306102]
[1744573674388,1.6255,1586.3,1585.4,6.30755]
[1744573674389,14.23377,1586.3,1585.9,6.30545]
[1744573674572,7.92952,1586.3,1585.8,6.30567]
[1744573674891,6.30443,1586.2,1585.8,6.30567]
[1744573675389,6.30527,1586.0,1585.4,6.30754]
[1744573675563,6.30598,1585.8,1585.5,0.19700895]
[1744573675772,12.6115,1585.9,1585.5,6.50399895]
[1744573676086,6.30479,1586.1,1585.6,6.30676]
[1744573676294,6.30456,1586.2,1585.7,6.30622]
[1744573676594,6.8554,1586.0,1585.7,0.19700895]
[1744573676795,6.30596,1585.8,1585.7,0.19700895]
[1744573677090,6.85596,1585.8,1585.7,0.19700895]
[1744573677259,6.30643,1585.7,1585.2,0.3792]
[1744573677454,6.30692,1585.6,1585.2,0.3792]
[1744573677660,0.55,1585.8,1585.2,0.3792]
[1744573677861,6.30795,1585.3,1585.2,0.3792]
[1744573678274,6.30619,1585.8,1585.4,6.30729]
[1744573678488,7.83062,1585.9,1585.5,6.30701]
[1744573678694,6.30692,1585.6,1585.2,6.68752]
[1744573678882,6.30782,1585.4,1585.2,0.3792]
[1744573679393,6.30795,1585.3,1585.2,0.3792]
[1744573679599,7.93255,1585.3,1585.2,0.3792]
[1744573679971,1.6246,1585.3,1585.2,0.3792]
[1744573680176,7.93255,1585.3,1585.2,0.3792]
[1744573680360,6.30835,1585.2,1585.1,0.05]
[1744573680565,6.31037,1584.7,1584.3,6.31189]
[1744573680868,6.30955,1584.9,1584.5,6.31095]
[1744573680869,6.30968,1584.9,1584.5,6.31095]
[1744573681081,12.61948,1584.9,1584.5,6.31095]
[1744573681282,12.61859,1585.0,1584.5,6.31095]